Workbook

Sheet Calculatreur de prêt
B2: CALCULATEUR DE | G2: 50000 | L2: 2011-05-10
B3: PRÊT ÉTUDIANT
B5: Il est suggéré que le remboursement mensuel total de votre prêt étudiant ne dépasse pas 8 % de votre salaire annuel la première année.
C7: Votre paiement mensuel actuel combiné est : | F7: =CollegeLoans[[#Totals],[Paiement mensuel actuel]] -> 328.5859073 | I7: Votre paiement mensuel planifié combiné est : | M7: =CollegeLoans[[#Totals],[Paiement planifié]] -> 328.5859073
C8: Pourcentage du revenu mensuel : | F8: =CollegeLoans[[#Totals],[Paiement mensuel actuel]]/EstimatedMonthlySalary -> 0.07886061774 | I8: Pourcentage du revenu mensuel : | M8: =CollegeLoans[[#Totals],[Paiement planifié]]/EstimatedMonthlySalary -> 0.07886061774
C11: INFORMATIONS GÉNÉRALES SUR LE PRÊT | G11: DONNÉES DE REMBOURSEMENT DU PRÊT | J11: INFORMATIONS SUR LE PAIEMENT
C12: N° du prêt | D12: Prêteur | E12: Montant du prêt | F12: Taux d’intérêt annuel | G12: Date de début | H12: Durée (années) | I12: Date de fin | J12: Paiement mensuel actuel | K12: Montant total de l’intérêt | L12: Paiement planifié | M12: Paiement annuel
C13: 10998M88 | D13: Prêteur 1 | E13: 10000 | F13: 0.05 | G13: 2011-04-01 | H13: 10 | I13: =IF(AND(CollegeLoans[[#This Row],[Date de début]]>0,CollegeLoans[[#This Row],[Durée (années)]]>0),EDATE(CollegeLoans[[#This Row],[Date de début]],CollegeLoans[[#This Row],[Durée (années)]]*12),"") -> 2021-04-01 | J13: =IF(AND(LoanStartLToday,COUNT(CollegeLoans[[#This Row],[Montant du prêt]]:CollegeLoans[[#This Row],[Durée (années)]])=4,CollegeLoans[[#This Row],[Date de début]]<TODAY()),PMT(CollegeLoans[[#This Row],[Taux d’intérêt annuel]]/12,CollegeLoans[[#This Row],[Durée (années)]]*12,-CollegeLoans[[#This Row],[Montant du prêt]],0,0),"") -> 106.0655152 | K13: =IFERROR((CollegeLoans[[#This Row],[Paiement planifié]]*(CollegeLoans[[#This Row],[Durée (années)]]*12))-CollegeLoans[[#This Row],[Montant du prêt]],"") -> 2727.861829 | L13: =IF(COUNTA(CollegeLoans[[#This Row],[Montant du prêt]:[Durée (années)]])<>4,"",PMT(CollegeLoans[[#This Row],[Taux d’intérêt annuel]]/12,CollegeLoans[[#This Row],[Durée (années)]]*12,-CollegeLoans[[#This Row],[Montant du prêt]],0,0)) -> 106.0655152 | M13: =IFERROR(CollegeLoans[[#This Row],[Paiement planifié]]*12,"") -> 1272.786183
C14: 20987N87 | D14: Prêteur 2 | E14: 8000 | F14: 0.05 | G14: 2011-05-01 | H14: 10 | I14: =IF(AND(CollegeLoans[[#This Row],[Date de début]]>0,CollegeLoans[[#This Row],[Durée (années)]]>0),EDATE(CollegeLoans[[#This Row],[Date de début]],CollegeLoans[[#This Row],[Durée (années)]]*12),"") -> 2021-05-01 | J14: =IF(AND(LoanStartLToday,COUNT(CollegeLoans[[#This Row],[Montant du prêt]]:CollegeLoans[[#This Row],[Durée (années)]])=4,CollegeLoans[[#This Row],[Date de début]]<TODAY()),PMT(CollegeLoans[[#This Row],[Taux d’intérêt annuel]]/12,CollegeLoans[[#This Row],[Durée (années)]]*12,-CollegeLoans[[#This Row],[Montant du prêt]],0,0),"") -> 84.85241219 | K14: =IFERROR((CollegeLoans[[#This Row],[Paiement planifié]]*(CollegeLoans[[#This Row],[Durée (années)]]*12))-CollegeLoans[[#This Row],[Montant du prêt]],"") -> 2182.289463 | L14: =IF(COUNTA(CollegeLoans[[#This Row],[Montant du prêt]:[Durée (années)]])<>4,"",PMT(CollegeLoans[[#This Row],[Taux d’intérêt annuel]]/12,CollegeLoans[[#This Row],[Durée (années)]]*12,-CollegeLoans[[#This Row],[Montant du prêt]],0,0)) -> 84.85241219 | M14: =IFERROR(CollegeLoans[[#This Row],[Paiement planifié]]*12,"") -> 1018.228946
C15: 36785LM | D15: Prêteur 3 | E15: 6000 | F15: 0.045 | G15: 2012-03-01 | H15: 10 | I15: =IF(AND(CollegeLoans[[#This Row],[Date de début]]>0,CollegeLoans[[#This Row],[Durée (années)]]>0),EDATE(CollegeLoans[[#This Row],[Date de début]],CollegeLoans[[#This Row],[Durée (années)]]*12),"") -> 2022-03-01 | J15: =IF(AND(LoanStartLToday,COUNT(CollegeLoans[[#This Row],[Montant du prêt]]:CollegeLoans[[#This Row],[Durée (années)]])=4,CollegeLoans[[#This Row],[Date de début]]<TODAY()),PMT(CollegeLoans[[#This Row],[Taux d’intérêt annuel]]/12,CollegeLoans[[#This Row],[Durée (années)]]*12,-CollegeLoans[[#This Row],[Montant du prêt]],0,0),"") -> 62.18304525 | K15: =IFERROR((CollegeLoans[[#This Row],[Paiement planifié]]*(CollegeLoans[[#This Row],[Durée (années)]]*12))-CollegeLoans[[#This Row],[Montant du prêt]],"") -> 1461.965431 | L15: =IF(COUNTA(CollegeLoans[[#This Row],[Montant du prêt]:[Durée (années)]])<>4,"",PMT(CollegeLoans[[#This Row],[Taux d’intérêt annuel]]/12,CollegeLoans[[#This Row],[Durée (années)]]*12,-CollegeLoans[[#This Row],[Montant du prêt]],0,0)) -> 62.18304525 | M15: =IFERROR(CollegeLoans[[#This Row],[Paiement planifié]]*12,"") -> 746.1965431
C16: 765R43 | D16: Prêteur 4 | E16: 4000 | F16: 0.05 | G16: 2012-05-01 | H16: 5 | I16: =IF(AND(CollegeLoans[[#This Row],[Date de début]]>0,CollegeLoans[[#This Row],[Durée (années)]]>0),EDATE(CollegeLoans[[#This Row],[Date de début]],CollegeLoans[[#This Row],[Durée (années)]]*12),"") -> 2017-05-01 | J16: =IF(AND(LoanStartLToday,COUNT(CollegeLoans[[#This Row],[Montant du prêt]]:CollegeLoans[[#This Row],[Durée (années)]])=4,CollegeLoans[[#This Row],[Date de début]]<TODAY()),PMT(CollegeLoans[[#This Row],[Taux d’intérêt annuel]]/12,CollegeLoans[[#This Row],[Durée (années)]]*12,-CollegeLoans[[#This Row],[Montant du prêt]],0,0),"") -> 75.48493458 | K16: =IFERROR((CollegeLoans[[#This Row],[Paiement planifié]]*(CollegeLoans[[#This Row],[Durée (années)]]*12))-CollegeLoans[[#This Row],[Montant du prêt]],"") -> 529.0960746 | L16: =IF(COUNTA(CollegeLoans[[#This Row],[Montant du prêt]:[Durée (années)]])<>4,"",PMT(CollegeLoans[[#This Row],[Taux d’intérêt annuel]]/12,CollegeLoans[[#This Row],[Durée (années)]]*12,-CollegeLoans[[#This Row],[Montant du prêt]],0,0)) -> 75.48493458 | M16: =IFERROR(CollegeLoans[[#This Row],[Paiement planifié]]*12,"") -> 905.8192149
C17: Totaux | E17: =SUBTOTAL(109,CollegeLoans[Montant du prêt]) -> 28000 | J17: =SUBTOTAL(109,CollegeLoans[Paiement mensuel actuel]) -> 328.5859073 | K17: =SUBTOTAL(109,CollegeLoans[Montant total de l’intérêt]) -> 6901.212797 | L17: =SUBTOTAL(109,CollegeLoans[Paiement planifié]) -> 328.5859073 | M17: =SUBTOTAL(109,CollegeLoans[Paiement annuel]) -> 3943.030887
C18: Moyennes | E18: =AVERAGE(CollegeLoans[Montant du prêt]) -> 7000 | F18: =AVERAGE(CollegeLoans[Taux d’intérêt annuel]) -> 0.04875 | K18: =AVERAGE(CollegeLoans[Montant total de l’intérêt]) -> 1725.303199 | M18: =AVERAGE(CollegeLoans[Paiement annuel]) -> 985.7577218
K20: Remboursement du prêt consolidé total : | M20: =CollegeLoans[[#Totals],[Montant du prêt]]+CollegeLoans[[#Totals],[Montant total de l’intérêt]] -> 34901.2128
K22: Revenu mensuel prévu à la fin des études : | M22: =(EstimatedAnnualSalary/12) -> 4166.666667
